[Event "Chinese Championship-B Men 2024"]
[Site "Liaocheng"]
[Date "2024.04.25"]
[Round "10.2"]
[White "Chen, Zimu(Js)"]
[Black "Zhang, Di"]
[Result "1/2-1/2"]
[ECO "D94"]
[WhiteElo "2075"]
[BlackElo "2303"]
[Annotator "TA"]
[PlyCount "60"]
[EventDate "2024.04.24"]
[EventType "swiss"]
[EventCountry "CHN"]
[SourceTitle "playchess.com"]
[Source "ChessBase"]
[SourceQuality "1"]
[TimeControl "5400+30"]

{[%evp 24,60,38,40,50,42,46,51,57,57,39,43,51,51,50,16,25,24,12,18,8,0,0,0,0,0,0,0,0,0,0,-1,-1,-1,0,0,0,0,0]} 1. d4 {[%emt 0:00:13]} d5 {[%emt 0:01:08]} 2. c4 {[%emt 0:00:35]} c6 {[%emt 0:00:21]} 3. Nf3 {[%emt 0:00:06]} Nf6 {[%emt 0:00:33]} 4. e3 {[%emt 0:00:09]} g6 {[%emt 0:00:37]} 5. Nc3 {[%emt 0:01:42]} Bg7 {[%emt 0:00:55]} 6. Be2 {[%emt 0:02:42]} O-O {[%emt 0:01:40]} 7. O-O {[%emt 0:00:23]} dxc4 {[%emt 0:03:27]} 8. Bxc4 {[%emt 0:00:11]} Bg4 {[%emt 0:00:09]} 9. h3 {[%emt 0:01:10]} Bxf3 {[%emt 0:00:12]} 10. Qxf3 {[%emt 0:00:18]} Nbd7 {[%emt 0:00:11]} 11. Rd1 {[%emt 0:02:19]} e5 {[%emt 0:00:41]} 12. d5 {[%emt 0:00:07]} e4 {[%emt 0:00:15]} 13. Nxe4 {[%emt 0:01:06]} Ne5 {[%emt 0:00:15][%csl LRc4,LRd5,LRf3]} 14. Nxf6+ {[%emt 0:00:52]} Bxf6 {[%emt 0:00:08]} 15. Qe2 {[%emt 0:00:05] [#] Threatens to win with dxc6.} Nxc4 {[%emt 0:00:09] White is slightly better.} 16. Qxc4 {[%emt 0:00:25]} cxd5 {[%emt 0:00:07]} 17. Rxd5 {[%emt 0:02:32]} Qc8 {[%emt 0:00:09]} 18. Qd3 {[%emt 0:07:01]} Re8 {[%emt 0:00:42]} 19. e4 {[%emt 0:04:38]} Qe6 {[%emt 0:00:32]} 20. Be3 {[%emt 0:01:50]} Qxe4 {[%emt 0:00:26]} 21. Qxe4 {The position is equal.} Rxe4 {[%emt 0:00:03]} 22. Rb5 {[%emt 0:02:42]} b6 {[%emt 0:02:49]} 23. a4 {[%emt 0:00:09]} Re5 {[%emt 0:01:04]} 24. Rxe5 Bxe5 {[%emt 0:00:05]} 25. a5 {[%emt 0:00:23]} bxa5 26. Rxa5 {[%emt 0:00:05]} Bxb2 {[%emt 0:00:24]} 27. Rxa7 {[%emt 0:00:05]} Rxa7 28. Bxa7 $11 {[%emt 0:00:04] KB-KB} h5 {[%emt 0:00:09]} 29. g4 {[%emt 0:00:16]} hxg4 30. hxg4 {[%emt 0:00:05]} f5 {[%emt 0:00:26] Weighted Error Value: White=0.03 (flawless) /Black=0.01 (flawless) .  Inaccurate:     	White=1     	---        OK:         	White=6     	Black=8      Best:        	White=1     	Black=2} 1/2-1/2

[Event "Chinese Championship-B Men 2024"]
[Site "Liaocheng"]
[Date "2024.04.25"]
[Round "10.3"]
[White "Xie, Kaifan"]
[Black "Gong, Changda"]
[Result "1/2-1/2"]
[ECO "D10"]
[WhiteElo "2393"]
[BlackElo "2170"]
[Annotator "TA"]
[PlyCount "73"]
[EventDate "2024.04.24"]
[EventType "swiss"]
[EventCountry "CHN"]
[SourceTitle "playchess.com"]
[Source "ChessBase"]
[SourceQuality "1"]
[TimeControl "5400+30"]

{[%evp 12,73,17,8,11,0,18,12,16,10,10,8,14,12,18,7,0,0,0,0,0,0,-4,-31,0,-29,-27,-32,-25,-23,-27,-40,-25,-25,-25,-34,-31,-42,-25,-25,0,-41,-35,-36,-30,-33,-33,-33,-30,-33,-20,-34,0,-50,-43,-39,-36,-39,-37,-73,0,-41,-44,-44]} 1. d4 {[%emt 0:00:01]} d5 {[%emt 0:03:34]} 2. c4 {[%emt 0:00:16]} c6 {[%emt 0:00:07]} 3. cxd5 {[%emt 0:00:13]} cxd5 {[%emt 0:00:21]} 4. Bf4 {[%emt 0:00:24]} Nf6 {[%emt 0:00:10]} 5. e3 {[%emt 0:00:15]} Nc6 {[%emt 0:00:07]} 6. Nc3 {[%emt 0:00:06]} a6 {[%emt 1:29:11]} 7. Be2 {[%emt 0:02:31]} Bf5 {[%emt 0:00:00]} 8. Nf3 {[%emt 0:00:09]} Nh5 {[%emt 0:00:00]} 9. Be5 {[%emt 0:20:02] [#] And now Nh4 would win.} e6 {[%emt 0:00:00] The position is equal.} 10. O-O {[%emt 0:16:05]} Be7 {[%emt 0:00:00]} 11. h3 {[%emt 0:04:09] g4 is the strong threat.} Nf6 {[%emt 0:00:00]} 12. Bh2 {[%emt 0:03:25]} O-O {[%emt 0:00:00]} 13. Rc1 {[%emt 0:00:03]} Rc8 {[%emt 0:00:00]} 14. Bd3 {[%emt 0:03:42]} Bxd3 15. Qxd3 {[%emt 0:00:01]} b5 {[%emt 0:00:00]} 16. Ne2 {[%emt 0:01:51]} Ne4 {[%emt 0:00:00]} 17. a3 {[%emt 0:01:12]} Qb6 {[%emt 0:00:00]} 18. Nd2 {[%emt 0:11:55]} Nxd2 19. Qxd2 {[%emt 0:00:01]} Na5 {[%emt 0:00:00] [#] Strongly threatening ...Nb3.} 20. Rxc8 {[%emt 0:00:37]} Rxc8 {[%emt 0:00:00]} 21. Rc1 {[%emt 0:00:01]} Nc4 {[%emt 0:00:00]} 22. Qc2 {[%emt 0:00:31]} Ra8 {[%emt 0:00:00]} 23. Nc3 {[%emt 0:04:23]} h6 {[%emt 0:00:00]} 24. Bg3 {[%emt 0:01:55]} Ra7 {[%emt 0:00:00]} 25. Ne2 {[%emt 0:06:57]} Ra8 {[%emt 0:00:00]} 26. Nc3 {[%emt 0:00:15]} Rc8 {[%emt 0:00:00][%cal Oc4a3]} 27. Ne2 {[%emt 0:03:02]} Qb7 {[%emt 0:00:00]} 28. Nf4 {[%emt 0:04:45]} a5 {[%emt 0:00:00]} 29. Nd3 {[%emt 0:00:55]} a4 {[%emt 0:00:00]} 30. Qd1 {[%emt 0:00:37]} Nb6 {[%emt 0:00:00]} 31. Bf4 {[%emt 0:01:33]} Rc4 {[%emt 0:00:00]} 32. Ne5 {[%emt 0:00:42]} (32. Rb1 $11) 32... Rxc1 $15 {[%emt 0:00:00]} 33. Qxc1 {[%emt 0:00:01]} Nc4 {[%emt 0:00:00]} 34. Qc2 {[%emt 0:00:58]} Qa6 {[%emt 0:00:00]} 35. Qc3 {[%emt 0:01:53]} Qb7 {[%emt 0:00:00]} 36. Qc2 {[%emt 0:00:11]} Bf8 {[%emt 0:00:00]} 37. Bg3 {[%emt 0:00:59] Weighted Error Value: White=0.07 (flawless) /Black=0.08 (flawless) .  Mistake:       	White=1     	---        Inaccurate:     	White=3     	Black=3      OK:         	White=10    	Black=13     Best:        	White=1     	Black=1} 1/2-1/2

[Event "Chinese Championship-B Men 2024"]
[Site "Liaocheng"]
[Date "2024.04.25"]
[Round "10.4"]
[White "Wu, Yixing"]
[Black "Pan, Shi Tian Yu"]
[Result "1/2-1/2"]
[ECO "E28"]
[WhiteElo "2348"]
[BlackElo "2166"]
[Annotator "TA"]
[PlyCount "80"]
[EventDate "2024.04.24"]
[EventType "swiss"]
[EventCountry "CHN"]
[SourceTitle "playchess.com"]
[Source "ChessBase"]
[SourceQuality "1"]
[TimeControl "5400+30"]

{[%evp 10,80,-8,-24,-4,-50,-28,-43,-43,-63,35,34,34,45,38,37,55,23,40,33,40,31,31,22,22,15,15,15,15,15,15,15,15,15,26,15,26,15,15,15,29,20,19,15,32,32,32,29,32,0,32,0,32,32,11,-223,11,11,11,4,4,4,4,4,4,4,4,4,4,4,4,4,47]} 1. d4 {[%emt 0:00:03]} Nf6 {[%emt 0:00:07]} 2. c4 {[%emt 0:00:10]} e6 {[%emt 0:00:05]} 3. Nc3 {[%emt 0:00:03]} Bb4 {[%emt 0:00:56]} 4. e3 {[%emt 0:00:54]} O-O {[%emt 0:01:20]} 5. a3 {[%emt 0:01:26]} Bxc3+ {[%emt 0:00:42]} 6. bxc3 {[%emt 0:00:02]} c5 {[%emt 0:00:14]} 7. Ne2 {[%emt 0:06:41]} (7. Nf3 $11) 7... d6 {[%emt 0:00:40]} 8. Ng3 {[%emt 0:00:30]} Nc6 {[%emt 0:01:17] Black is slightly better.} 9. e4 {[%emt 0:04:26]} e5 {[%emt 0:02:28]} ({Black should try} 9... b6 $15) 10. d5 $14 {[%emt 0:01:37]} Na5 {[%emt 0:01:12]} 11. Bd3 {[%emt 0:02:59]} Nd7 {[%emt 0:08:57]} 12. Rb1 {[%emt 0:06:21]} f6 {[%emt 0:08:44]} 13. Qe2 {[%emt 0:03:19]} Rf7 {[%emt 0:02:03]} 14. h4 {[%emt 0:00:52][%cal Bh2h4,Bh4h5][%mdl 32]} Nf8 {[%emt 0:06:34]} 15. h5 {[%emt 0:07:26]} b6 {[%emt 0:06:56]} 16. f3 {[%emt 0:01:11]} Qe8 {[%emt 0:02:21]} 17. Rh4 {[%emt 0:03:05]} h6 {[%emt 0:05:01]} 18. Kf2 {[%emt 0:09:28]} Nh7 {[%emt 0:01:12]} 19. Nf5 {[%emt 0:01:12]} Bxf5 20. exf5 {[%emt 0:00:01]} Re7 {[%emt 0:01:57]} 21. Bc2 {[%emt 0:01:19]} Qd7 {[%emt 0:04:26]} 22. Be3 {[%emt 0:00:45]} Kf7 {[%emt 0:01:05] Black is weak on the light squares} (22... Qc8 {simplifies} 23. Qd3 Ng5 24. Bxg5 fxg5 25. Rhh1 Qa6) 23. Rb5 {[%emt 0:02:21]} Rh8 {[%emt 0:02:27]} 24. Rh1 {[%emt 0:02:17]} Rc8 {[%emt 0:03:06]} 25. Bd2 {[%emt 0:04:29]} Rh8 {[%emt 0:01:13]} 26. Qe4 {[%emt 0:00:14]} Ng5 {[%emt 0:04:03]} 27. Bxg5 {[%emt 0:00:21]} hxg5 {[%emt 0:00:19]} 28. Bd3 {[%emt 0:04:51]} Rh6 {[%emt 0:01:57]} 29. Bc2 {[%emt 0:02:24]} Qd8 {[%emt 0:01:24]} 30. Bd3 {[%emt 0:03:09]} Re8 {[%emt 0:00:42]} 31. Qe2 {[%emt 0:05:53]} Reh8 {[%emt 0:01:52]} 32. Rhb1 $2 {[%emt 0:00:19]} (32. g4 $11 {and White stays safe.}) 32... Qc7 $2 {[%emt 0:04:44]} ({Black should play} 32... Rxh5 $19 {...Qe8 would now be deadly.} 33. Rxa5 bxa5 34. Rb7+ Kg8) 33. g4 $11 {[%emt 0:00:28] The position is equal.} Rb8 {[%emt 0:00:55]} 34. Qb2 {[%emt 0:00:37][%cal Ob5a5] [#] aiming for Rxa5!} Rhh8 {[%emt 0:00:13]} 35. Ke3 {[%emt 0:00:32]} Nb7 {[%emt 0:01:55]} 36. Ke4 {[%emt 0:00:30]} Na5 {[%emt 0:00:17]} 37. Be2 {[%emt 0:03:36][%cal Bd3e2,Be2d1,Bd1a4][%mdl 32]} Nb7 {[%emt 0:00:16]} 38. Bd1 $1 {[%emt 0:00:35] Active counter play!} Na5 {[%emt 0:00:17]} 39. Qe2 {[%emt 0:00:42]} Kg8 {[%emt 0:03:48]} 40. Ba4 {[%emt 0:02:42]} Kh7 {[%emt 0:00:59] Weighted Error Value: White=0.13 (very precise) /Black=0.16 (very precise) .  Loses game:     	White=1     	---        Missed win:     	---       	Black=1      Mistake:       	White=1     	Black=1      Inaccurate:     	White=3     	Black=3      OK:         	White=8     	Black=8      Best:        	White=2     	Black=1      Strong:       	White=1     	---} 1/2-1/2

[Event "Chinese Championship-B Men 2024"]
[Site "Liaocheng"]
[Date "2024.04.25"]
[Round "10.5"]
[White "Yu, Chaojie"]
[Black "Wang, Zihang"]
[Result "1/2-1/2"]
[ECO "B12"]
[WhiteElo "2047"]
[BlackElo "1846"]
[Annotator "NA RC"]
[PlyCount "72"]
[EventDate "2024.04.24"]
[EventType "swiss"]
[EventCountry "CHN"]
[SourceTitle "playchess.com"]
[Source "ChessBase"]
[SourceQuality "1"]
[TimeControl "5400+30"]

1. e4 {[%emt 0:00:12]} c6 {[%emt 0:01:05]} 2. d4 {[%emt 0:00:36]} d5 {[%emt 0:00:07]} 3. e5 {[%emt 0:00:34]} c5 {[%emt 0:01:07]} 4. dxc5 {[%emt 0:00:54]} e6 {[%emt 0:00:06]} 5. Be3 {[%emt 0:01:41]} Nd7 {[%emt 0:01:23]} 6. Bb5 {[%emt 0:10:09] B12: Caro-Kann: Advance Variation.} Ne7 {[%emt 0:01:24]} 7. Bd4 {[%emt 0:05:59]} Nc6 {[%emt 0:12:12]} 8. Bxc6 bxc6 {[%emt 0:00:06]} 9. b4 {[%emt 0:05:58]} a5 {[%emt 0:03:10]} 10. c3 {[%emt 0:02:19]} Qg5 {[%emt 0:07:37]} 11. g3 {[%emt 0:36:30]} Nxe5 {[%emt 0:02:06]} 12. f4 {[%emt 0:02:00]} Qg6 {[%emt 0:02:59]} 13. fxe5 {[%emt 0:00:56]} Qe4+ {[%emt 0:00:30]} 14. Qe2 {[%emt 0:00:15]} Qxh1 {[%emt 0:00:21]} 15. Nd2 {[%emt 0:00:18]} axb4 $1 {[%emt 0:24:57]} 16. cxb4 {[%emt 0:01:13]} Ba6 {[%emt 0:02:45]} 17. Qf2 {[%emt 0:00:47]} Bd3 {[%emt 0:05:34] [#]} ({Better is} 17... Bb5 $14) 18. a4 {[%emt 0:16:19]} ({White has to play} 18. O-O-O $1 $16 Rxa2 19. Re1) 18... Be4 {[%emt 0:04:45]} 19. b5 {[%emt 0:01:30]} cxb5 {[%emt 0:02:50]} 20. axb5 {[%emt 0:00:07]} Rxa1+ {[%emt 0:00:38]} 21. Bxa1 {[%emt 0:00:04]} Qg2 {[%emt 0:04:02]} 22. Qxg2 {[%emt 0:02:44]} Bxg2 {[%emt 0:00:29]} 23. Bd4 {[%emt 0:00:32]} Kd7 {[%emt 0:05:06]} 24. Nb3 {[%emt 0:03:00]} Be7 {[%emt 0:01:06]} 25. Na5 {[%emt 0:00:57]} Ra8 {[%emt 0:01:15]} 26. c6+ {[%emt 0:00:18]} Kc8 {[%emt 0:00:50]} 27. Nb7 {[%emt 0:03:43]} Kc7 {[%emt 0:01:53]} 28. Ne2 {[%emt 0:02:33]} Bb4+ {[%emt 0:01:26]} 29. Kf2 {[%emt 0:00:35]} Be4 $19 {[%emt 0:03:09]} 30. Nc1 {[%emt 0:02:10]} Ba3 {[%emt 0:03:15]} 31. Nb3 {[%emt 0:00:34]} Bb4 {[%emt 0:06:05]} 32. N3c5 {[%emt 0:00:17]} Bxc5 {[%emt 0:00:39]} 33. Nxc5 {[%emt 0:00:12]} Ra5 {[%emt 0:00:42]} 34. Na6+ {[%emt 0:00:57]} Kc8 {[%emt 0:00:18]} 35. b6 {[%emt 0:00:23]} Rxa6 {[%emt 0:00:34]} 36. Bc5 {[%emt 0:00:13]} Rxb6 {[%emt 0:01:12]} 1/2-1/2

[Event "Chinese Championship-B Men 2024"]
[Site "Liaocheng"]
[Date "2024.04.25"]
[Round "10.6"]
[White "Jin, Ruijun"]
[Black "Liu, Bei"]
[Result "1/2-1/2"]
[ECO "D30"]
[WhiteElo "1819"]
[BlackElo "1964"]
[Annotator "TA"]
[PlyCount "75"]
[EventDate "2024.04.24"]
[EventType "swiss"]
[EventCountry "CHN"]
[SourceTitle "playchess.com"]
[Source "ChessBase"]
[SourceQuality "1"]
[TimeControl "5400+30"]

{[%evp 19,75,14,27,7,0,4,12,0,63,51,75,54,104,45,56,22,29,31,24,17,18,19,23,22,26,3,2,4,4,5,5,6,7,5,6,0,0,0,7,0,16,6,6,0,0,0,0,0,0,0,0,0,0,0,0,-8,-8,-17]} 1. d4 {[%emt 0:00:55]} d5 {[%emt 0:00:13]} 2. c4 {[%emt 0:00:18]} c6 {[%emt 0:00:06]} 3. Nf3 {[%emt 0:00:14]} Nf6 {[%emt 0:00:17]} 4. e3 {[%emt 0:00:11]} e6 {[%emt 0:00:33][%cal Be7e6,Be6e5][%mdl 32]} 5. Nbd2 {[%emt 0:00:29]} Nbd7 {[%emt 0:00:39]} 6. Bd3 {[%emt 0:00:19]} Bd6 {[%emt 0:03:49]} 7. O-O {[%emt 0:00:12]} O-O {[%emt 0:00:04]} 8. e4 {[%emt 0:00:17]} e5 {[%emt 0:00:05]} 9. cxd5 {[%emt 0:00:07]} cxd5 {[%emt 0:00:12]} 10. exd5 {[%emt 0:00:14]} exd4 $1 {[%emt 0:00:29]} 11. Nc4 {[%emt 0:00:31]} Nb6 {[%emt 0:06:59]} 12. Nxd6 {[%emt 0:07:20]} Qxd6 {[%emt 0:00:05]} 13. Nxd4 {[%emt 0:00:14]} Qxd5 {[%emt 0:00:43] [#]} (13... Nbxd5 $11 14. Nf5 Bxf5 15. Bxf5 Rfe8) 14. b3 $1 $14 {[%emt 0:13:25]} Bg4 {[%emt 0:10:40]} (14... Rd8 15. Bb2) 15. Qd2 {[%emt 0:00:55]} Bh5 {[%emt 0:01:09] [#]} (15... Rfe8 $14) 16. Bb2 {[%emt 0:00:41] A strong pair of Bishops.} (16. Nf5 $1 $16 {[%cal Rf5e7]} Kh8 17. Bb2) 16... Bg6 {[%emt 0:00:41]} 17. Rfe1 {[%emt 0:08:06]} Bxd3 18. Qxd3 {[%emt 0:00:07]} Rfe8 {[%emt 0:07:23]} 19. Rad1 {[%emt 0:09:31]} Rxe1+ 20. Rxe1 {[%emt 0:00:06]} Re8 {[%emt 0:11:26]} 21. Rxe8+ Nxe8 {[%emt 0:00:02]} 22. Qf5 {[%emt 0:04:36]} Qxf5 {The position is equal.} 23. Nxf5 $11 {[%emt 0:00:10][%mdl 4096] Endgame. KBN-KNN} f6 {[%emt 0:11:46]} 24. Bd4 {[%emt 0:01:04]} Nc8 {[%emt 0:00:17]} 25. f3 {[%emt 0:00:22]} Kf7 {[%emt 0:00:29]} 26. Kf2 {[%emt 0:00:27]} Ke6 {[%emt 0:00:31]} 27. Ne3 {[%emt 0:00:19]} a6 {[%emt 0:01:37]} 28. Ke2 {[%emt 0:00:30]} g6 {[%emt 0:01:23]} 29. g4 {[%emt 0:01:23]} Ncd6 {[%emt 0:01:32]} 30. Kd3 {[%emt 0:00:27]} Nc7 {[%emt 0:01:43]} 31. a4 {[%emt 0:03:28]} f5 {[%emt 0:01:42]} 32. Bc5 {[%emt 0:06:19]} Nf7 {[%emt 0:01:47]} 33. gxf5+ {[%emt 0:00:49]} gxf5 {[%emt 0:00:04]} 34. Nc4 {[%emt 0:01:08]} Nd5 {[%emt 0:06:12]} 35. Bd4 {[%emt 0:02:47]} Ng5 {[%emt 0:05:11]} 36. Nd2 {[%emt 0:00:24]} b5 {[%emt 0:02:51]} 37. axb5 {[%emt 0:01:55]} axb5 {[%emt 0:00:00]} 38. Be3 {[%emt 0:00:32] Weighted Error Value: White=0.09 (flawless) /Black=0.09 (flawless) .  Mistake:       	White=1     	Black=2      Inaccurate:     	White=1     	---        OK:         	White=6     	Black=12     Best:        	---       	Black=1      Strong:       	White=1     	---} 1/2-1/2

[Event "Chinese Championship-B Men 2024"]
[Site "Liaocheng"]
[Date "2024.04.25"]
[Round "10.7"]
[White "Xie, Jianjun"]
[Black "Zhang, Yinzhe"]
[Result "0-1"]
[ECO "B50"]
[WhiteElo "2384"]
[BlackElo "1927"]
[Annotator "TA"]
[PlyCount "94"]
[EventDate "2024.04.24"]
[EventType "swiss"]
[EventCountry "CHN"]
[SourceTitle "playchess.com"]
[Source "ChessBase"]
[SourceQuality "1"]
[TimeControl "5400+30"]

{[%evp 13,94,14,25,14,21,-14,0,6,1,2,16,-22,-10,-26,-14,-29,0,-30,-48,-43,-35,-36,-41,-55,-35,-21,0,0,11,0,14,16,14,0,11,26,24,19,72,-60,-38,-53,68,81,80,66,81,53,131,60,256,48,87,84,91,77,70,80,88,77,81,48,29,0,54,-70,-4,-2,-2,-2,-4,-4,-6,-6,-3,-12,-14,-8,-11,-844,-825,-789,-438]} 1. e4 {[%emt 0:00:18]} c5 {[%emt 0:00:05]} 2. Nf3 {[%emt 0:00:44]} d6 {[%emt 0:00:07]} 3. c3 {[%emt 0:01:31]} Nf6 {[%emt 0:00:34]} 4. Be2 {[%emt 0:00:02]} Nbd7 {[%emt 0:01:20]} 5. d3 {[%emt 0:00:49]} b6 {[%emt 0:04:03]} 6. O-O {[%emt 0:01:01]} Bb7 {[%emt 0:00:45]} 7. Re1 {[%emt 0:02:19]} g6 {[%emt 0:01:46]} 8. Bf1 {[%emt 0:12:48]} Bg7 {[%emt 0:00:42]} 9. h3 {[%emt 0:00:23]} c4 {[%emt 0:06:23]} 10. d4 {[%emt 0:00:30] The position is equal.} Nxe4 {[%emt 0:01:17]} 11. Bxc4 {[%emt 0:00:08]} O-O {[%emt 0:00:38]} 12. d5 {[%emt 0:08:38]} Ndf6 {[%emt 0:08:09]} 13. a4 {[%emt 0:10:20]} Rc8 {[%emt 0:09:49]} 14. Na3 {[%emt 0:00:31]} Rc7 {[%emt 0:02:40]} 15. Qc2 {[%emt 0:03:57]} Nc5 {[%emt 0:07:12]} 16. Nb5 {[%emt 0:00:10]} Rd7 {[%emt 0:00:02]} 17. Nxa7 {[%emt 0:16:39]} Nxd5 {[%emt 0:04:19]} 18. Nb5 {[%emt 0:01:19]} Qa8 {[%emt 0:24:31]} 19. Qd1 {[%emt 0:00:25]} Ne6 {[%emt 0:10:37]} 20. Ng5 {[%emt 0:13:26]} Nxg5 {[%emt 0:09:16]} 21. Bxg5 {[%emt 0:00:02][%cal Bc1g5,Bg5e3,Be3d4][%mdl 32]} e6 {[%emt 0:00:13]} 22. Bf1 {[%emt 0:00:49]} Nf6 {[%emt 0:03:59]} 23. Ra3 {[%emt 0:01:33]} (23. Nxd6 $2 Ne4 24. Qc2 (24. Bf4 $2 Nxd6 25. h4 Rfd8 $19) 24... Nxd6 $19 (24... Rxd6 $2 25. Bf4 $19) (24... Nxg5 $2 25. Nxb7 h5 26. Bb5 $17)) 23... Ne4 {[%emt 0:00:31]} 24. Be3 {[%emt 0:00:09]} Qd8 {[%emt 0:00:05]} 25. b4 {[%emt 0:01:48]} f5 {[%emt 0:02:11]} (25... e5 $11 {keeps the balance.}) 26. Bd3 {[%emt 0:06:01]} ({Better is} 26. f3 $16 f4 27. Bd4) 26... d5 $15 {[%emt 0:00:09]} 27. f3 {[%emt 0:04:05][%cal Ob5d4] [#] Hoping for Nd4!} Nd6 {[%emt 0:01:30]} (27... f4 $1 $15 28. Bc1 Qh4) 28. Nxd6 $14 {[%emt 0:07:09]} Rxd6 {[%emt 0:00:02]} 29. Bd4 {[%emt 0:01:14]} Qh4 {[%emt 0:01:25]} 30. Bb5 {[%emt 0:01:01]} (30. Bxg7 {simplifies} Kxg7 31. Qe2 Kg8 32. a5) 30... Qg3 {[%emt 0:00:38]} ({Black should play} 30... Ra8 $14) 31. Qd2 {[%emt 0:00:27]} (31. Qe2 $16) 31... f4 $2 {[%emt 0:00:22] [#]} ({Not} 31... e5 $2 32. Bf2 Qf4 33. Qxf4 exf4 34. a5 $18) (31... Bh6 $1 $14 32. Be3 (32. Qxh6 Qxe1+ 33. Kh2 e5 $17) (32. Qf2 Bf4 $16) 32... Bxe3+ 33. Qxe3 Rfd8) 32. Qf2 $2 {[%emt 0:01:05]} (32. a5 $18) 32... Bxd4 {[%emt 0:00:29]} 33. cxd4 {[%emt 0:00:06]} Qxf2+ {[%emt 0:00:13]} 34. Kxf2 {[%emt 0:00:03]} Rc8 {[%emt 0:00:01] Inhibits Rc3.} 35. Raa1 {[%emt 0:01:57]} Rc2+ {[%emt 0:00:18]} 36. Re2 {[%emt 0:00:02]} Rc3 {[%emt 0:00:05]} 37. Raa2 {[%emt 0:00:12]} Bc6 {[%emt 0:00:43]} 38. Ba6 {[%emt 0:02:17]} Bd7 {[%emt 0:01:04]} (38... Rb3 $11) 39. b5 {[%emt 0:00:10]} ({White should try} 39. Reb2 $1 $14) 39... Kf7 {[%emt 0:01:03]} (39... Rc4 $15) 40. Rec2 {[%emt 0:00:15]} Rc4 {[%emt 0:00:01]} 41. Rxc4 {[%emt 0:02:30]} dxc4 $11 {[%emt 0:00:01][%mdl 4096] Endgame. KRB-KRB} 42. Rc2 {[%emt 0:00:13]} Rxd4 {[%emt 0:00:12] Strongly threatening ...Ke7.} 43. a5 $1 {[%emt 0:00:04]} Rd6 {[%emt 0:01:43]} (43... bxa5 $5 44. b6 $8 Rd6 $16 (44... Bc6 45. b7 $16)) 44. Rxc4 {[%emt 0:00:19]} bxa5 {[%emt 0:00:04] Threatens to win with ...e5.} 45. Rxf4+ {[%emt 0:00:04]} Ke7 {[%emt 0:00:11]} 46. Ra4 $2 {[%emt 0:00:09][%mdl 8192]} (46. Rc4 $11) 46... Rxa6 $19 {[%emt 0:00:07]} 47. Rg4 {[%emt 0:04:18]} Rd6 {Black used his chance.   Weighted Error Value: White=0.45/Black=0.24 (precise) .  Loses game:     	White=1     	Black=1      Missed win:     	White=1     	---        Mistake:       	White=3     	Black=5      Inaccurate:     	White=6     	Black=2      OK:         	White=12    	Black=15     Best:        	---       	Black=3      Strong:       	White=1     	---} 0-1